fUST/lending_fUST_20241228
["ID","MTS","AMOUNT","RATE_DAILY","PERIOD"]
[346917266,1735377037949,-500.0,0.00012373,2]
[346917268,1735377037958,-288.00201852,0.00012373,2]
[346917270,1735377037967,-501.870589,0.00012373,2]
[346917271,1735377037976,-500.0,0.00012373,2]
[346917273,1735377037985,-500.0,0.00012373,2]
[346917276,1735377037994,-500.0,0.00012373,2]
[346917278,1735377038004,-204.06087272,0.00012373,2]
[346917280,1735377038013,-500.0,0.00012373,2]
[346917282,1735377038023,-500.0,0.00012373,2]
[346917284,1735377038032,-500.0,0.00012373,2]
[346917286,1735377038042,-500.0,0.00012373,2]
[346917288,1735377038051,-500.0,0.00012373,2]
[346917290,1735377038061,-500.0,0.00012373,2]
[346917292,1735377038070,-500.0,0.00012373,2]
[346917293,1735377038079,-500.0,0.00012373,2]
[346917294,1735377038089,-500.0,0.00012373,2]
[346917295,1735377038099,-500.0,0.00012373,2]
[346917297,1735377038108,-500.0,0.00012373,2]
[346917299,1735377038117,-500.0,0.00012373,2]
[346917301,1735377038127,-1483.07,0.00012373,2]
[346917303,1735377038136,-500.0,0.00012373,2]
[346917305,1735377038147,-500.0,0.00012373,2]
[346917307,1735377038156,-500.0,0.00012373,2]
[346917309,1735377038165,-500.0,0.00012373,2]
[346917311,1735377038174,-500.0,0.00012373,2]
[346917312,1735377038184,-160.13931941,0.00012373,2]
[346917313,1735377038275,-6.19426425,0.00012373,2]
[346917314,1735377038284,-432.24429558,0.00012373,2]
[346917315,1735377038296,-67.75570442,0.00012373,2]
[346917316,1735377038306,-500.26962273,0.00012373,2]
[346917317,1735377038315,-294.94920041,0.00012373,2]
[346917318,1735377038327,-205.05079959,0.00012373,2]
[346917319,1735377038336,-500.0,0.00012373,2]
[346917320,1735377038345,-500.0,0.00012373,2]
[346917321,1735377038355,-500.0,0.00012373,2]
[346917322,1735377038364,-500.0,0.00012373,2]
[346917323,1735377038372,-500.0,0.00012373,2]
[346917324,1735377038383,-300.0,0.00012373,2]
[346917325,1735377038391,-500.0,0.00012373,2]
[346917326,1735377038401,-500.0,0.00012373,2]
[346917327,1735377038412,-500.0,0.00012373,2]
[346917328,1735377038422,-505.35906441,0.00012373,2]
[346917329,1735377038432,-500.0,0.00012373,2]
[346917330,1735377038442,-500.0,0.00012373,2]
[346917331,1735377038452,-500.0,0.00012373,2]
[346917332,1735377038547,-500.0,0.00012373,2]
[346917333,1735377038557,-500.0,0.00012373,2]
[346917334,1735377038566,-500.0,0.00012373,2]
[346917335,1735377038575,-500.0,0.00012373,2]
[346917336,1735377038584,-500.0,0.00012373,2]
[346917337,1735377038594,-500.0,0.00012373,2]
[346917338,1735377038603,-500.0,0.00012373,2]
[346917339,1735377038613,-500.0,0.00012373,2]
[346917340,1735377038622,-500.0,0.00012373,2]
[346917341,1735377038634,-500.0,0.00012373,2]
[346917342,1735377038644,-500.0,0.00012373,2]
[346917343,1735377038653,-500.0,0.00012373,2]
[346917344,1735377038662,-540.58280519,0.00012373,2]
[346917345,1735377038671,-500.0,0.00012373,2]
[346917346,1735377038680,-500.0,0.00012373,2]
[346917347,1735377038689,-500.0,0.00012373,2]
[346917348,1735377038699,-500.0,0.00012373,2]
[346917349,1735377038709,-500.0,0.00012373,2]
[346917350,1735377038720,-500.0,0.00012373,2]
[346917351,1735377038730,-500.0,0.00012373,2]
[346917352,1735377038740,-502.24284396,0.00012373,2]
[346917353,1735377038750,-500.0,0.00012373,2]
[346917354,1735377038760,-500.0,0.00012373,2]
[346917355,1735377038771,-500.0,0.00012373,2]
[346917356,1735377038780,-500.0,0.00012373,2]
[346917357,1735377038789,-8032.35681979,0.00012375,2]
[346917358,1735377038800,-3698.208855,0.00012375,2]
[346917359,1735377038812,-500.0,0.00012375,2]
[346917360,1735377038829,-227309.85541977,0.00012375,2]
[346917361,1735377038838,-838.41815098,0.00012375,2]
[346917362,1735377038847,-838.41815098,0.000124,2]
[346917363,1735377038857,-500.0,0.00012499,2]
[346917364,1735377038867,-500.0,0.00012499,2]
[346917365,1735377038876,-435.29585301,0.00012499,2]
[346917366,1735377038885,-500.0,0.00012499,2]
[346917367,1735377038895,-501.45576358,0.00012499,2]
[346917368,1735377038905,-500.0,0.00012499,2]
[346917369,1735377038915,-503.21424572,0.00012499,2]
[346917370,1735377038925,-500.0,0.00012499,2]
[346917371,1735377038934,-500.0,0.00012499,2]
[346917372,1735377038943,-500.0,0.00012499,2]
[346917373,1735377038953,-500.0,0.00012499,2]
[346917374,1735377038962,-501.47771127,0.00012499,2]
[346917375,1735377038971,-500.0,0.00012499,2]
[346917376,1735377038980,-500.07418367,0.00012499,2]
[346917377,1735377038990,-500.0,0.00012499,2]
[346917378,1735377038999,-501.62156979,0.00012499,2]
[346917379,1735377039008,-501.26864288,0.00012499,2]
[346917380,1735377039017,-500.0,0.00012499,2]
[346917381,1735377039026,-500.0,0.00012499,2]
[346917382,1735377039035,-185.79293664,0.00012499,2]
[346917383,1735377039045,-503.48612127,0.00012499,2]
[346917384,1735377039054,-500.0,0.00012499,2]
[346917385,1735377039064,-500.0,0.00012499,2]
[346917386,1735377039074,-500.99275447,0.00012499,2]
[346917387,1735377039085,-500.0,0.00012499,2]
[346917388,1735377039094,-474.97487182,0.00012499,2]
[346917389,1735377039103,-500.0,0.00012499,2]
[346917390,1735377039113,-500.0,0.00012499,2]
[346917391,1735377039122,-500.0,0.00012499,2]
[346917392,1735377039133,-500.0,0.00012499,2]
[346917393,1735377039142,-500.0,0.00012499,2]
[346917394,1735377039152,-500.0,0.00012499,2]
[346917395,1735377039161,-500.0,0.00012499,2]
[346917396,1735377039171,-500.0,0.00012499,2]
[346917397,1735377039180,-503.23747268,0.00012499,2]
[346917398,1735377039189,-500.0,0.00012499,2]
[346917399,1735377039199,-500.0,0.00012499,2]
[346917400,1735377039208,-500.0,0.00012499,2]
[346917401,1735377039217,-504.71507672,0.00012499,2]
[346917402,1735377039226,-500.0,0.00012499,2]
[346917404,1735377039235,-500.08514373,0.00012499,2]
[346917405,1735377039244,-311.32939574,0.00012499,2]
[346917406,1735377039253,-500.0,0.00012499,2]
[346917407,1735377039263,-500.0,0.00012499,2]
[346917408,1735377039272,-500.0,0.00012499,2]
[346917409,1735377039281,-500.0,0.00012499,2]
[346917410,1735377039290,-235.73285186,0.00012499,2]
[346917411,1735377039299,-500.0,0.00012499,2]
[346917412,1735377039308,-523.40537884,0.00012499,2]
[346917413,1735377039317,-500.0,0.00012499,2]
[346917414,1735377039326,-500.0,0.00012499,2]
[346917415,1735377039335,-500.0,0.00012499,2]
[346917416,1735377039345,-170.32892116,0.00012499,2]
[346917417,1735377039354,-511.91898471,0.00012499,2]
[346917418,1735377039363,-500.0,0.00012499,2]
[346917420,1735377039372,-500.0,0.00012499,2]
[346917421,1735377039382,-500.0,0.00012499,2]
[346917422,1735377039391,-500.0,0.00012499,2]
[346917423,1735377039400,-500.78948363,0.00012499,2]
[346917424,1735377039409,-500.0,0.00012499,2]
[346917425,1735377039418,-500.0,0.00012499,2]
[346917426,1735377039427,-500.0,0.00012499,2]
[346917427,1735377039436,-500.0,0.00012499,2]
[346917428,1735377039446,-500.0,0.00012499,2]
[346917429,1735377039456,-500.0,0.00012499,2]
[346917430,1735377039466,-500.0,0.00012499,2]
[346917432,1735377039480,-500.0,0.00012499,2]
[346917434,1735377039489,-500.0,0.00012499,2]
[346917436,1735377039498,-500.0,0.00012499,2]
[346917438,1735377039507,-500.0,0.00012499,2]
[346917440,1735377039516,-500.0,0.00012499,2]
[346917442,1735377039525,-500.0,0.00012499,2]
[346917444,1735377039535,-500.0,0.00012499,2]
[346917446,1735377039544,-391.85901993,0.00012499,2]
[346917448,1735377039553,-500.0,0.00012499,2]
[346917450,1735377039563,-507.33,0.00012499,2]
[346917452,1735377039572,-500.0,0.00012499,2]
[346917454,1735377039582,-500.0,0.00012499,2]
[346917456,1735377039591,-500.0,0.00012499,2]
[346917458,1735377039600,-500.0,0.00012499,2]
[346917460,1735377039611,-500.0,0.00012499,2]
[346917462,1735377039620,-500.0,0.00012499,2]
[346917464,1735377039630,-500.0,0.00012499,2]
[346917467,1735377039640,-500.0,0.00012499,2]
[346917468,1735377039649,-500.0,0.00012499,2]
[346917471,1735377039659,-501.66382464,0.00012499,2]
[346917472,1735377039669,-558.56467787,0.00012499,2]
[346917474,1735377039678,-501.7697616,0.00012499,2]
[346917476,1735377039687,-500.0,0.00012499,2]
[346917479,1735377039697,-500.0,0.00012499,2]
[346917480,1735377039706,-500.0,0.00012499,2]
[346917482,1735377039716,-500.0,0.00012499,2]
[346917484,1735377039725,-500.0,0.00012499,2]
[346917486,1735377039734,-500.0,0.00012499,2]
[346917488,1735377039743,-500.0,0.00012499,2]
[346917490,1735377039752,-500.0,0.00012499,2]
[346917492,1735377039761,-500.0,0.00012499,2]
[346917494,1735377039770,-507.87619297,0.00012499,2]
[346917497,1735377039779,-500.0,0.00012499,2]
[346917499,1735377039789,-175.56917762,0.00012499,2]
[346917501,1735377039798,-500.0,0.00012499,2]
[346917503,1735377039807,-501.10183231,0.00012499,2]
[346917505,1735377039816,-500.0,0.00012499,2]
[346917506,1735377039825,-500.0,0.00012499,2]
[346917507,1735377039834,-150.0,0.00012499,2]
[346917508,1735377039843,-500.0,0.00012499,2]
[346917509,1735377039852,-500.0,0.00012499,2]
[346917511,1735377039861,-500.0,0.00012499,2]
[346917513,1735377039871,-500.0,0.00012499,2]
[346917515,1735377039880,-500.0,0.00012499,2]
[346917517,1735377039889,-500.0,0.00012499,2]
[346917519,1735377039898,-500.0,0.00012499,2]
[346917521,1735377039907,-500.0,0.00012499,2]
[346917523,1735377039917,-500.0,0.00012499,2]
[346917525,1735377039926,-500.0,0.00012499,2]
[346917526,1735377039935,-500.0,0.00012499,2]
[346917527,1735377039944,-500.0,0.00012499,2]
[346917529,1735377039953,-500.0,0.00012499,2]
[346917531,1735377039962,-500.0,0.00012499,2]
[346917533,1735377039972,-500.0,0.00012499,2]
[346917534,1735377039981,-500.0,0.00012499,2]
[346917536,1735377039990,-500.0,0.00012499,2]
[346917538,1735377039999,-502.57760747,0.00012499,2]
[346917539,1735377040008,-500.0,0.00012499,2]
[346917540,1735377040017,-500.0,0.00012499,2]
[346917541,1735377040026,-500.0,0.00012499,2]
[346917542,1735377040035,-500.0,0.00012499,2]
[346917543,1735377040044,-500.0,0.00012499,2]
[346917544,1735377040053,-501.91359682,0.00012499,2]
[346917545,1735377040062,-500.0,0.00012499,2]
[346917546,1735377040071,-500.0,0.00012499,2]
[346917547,1735377040080,-500.0,0.00012499,2]
[346917548,1735377040089,-500.0,0.00012499,2]
[346917549,1735377040098,-500.0,0.00012499,2]
[346917550,1735377040107,-500.0,0.00012499,2]
[346917551,1735377040117,-500.0,0.00012499,2]
[346917552,1735377040126,-500.0,0.00012499,2]
[346917553,1735377040135,-500.0,0.00012499,2]
[346917554,1735377040144,-486.58093515,0.00012499,2]
[346917555,1735377040154,-500.0,0.00012499,2]
[346917556,1735377040163,-26941.63885999,0.000125,4]
[346917557,1735377040177,-969.94308932,0.000125,4]
[346917558,1735377040196,-13006.13128309,0.000125,4]
[346917564,1735377042782,-1857.01555313,0.00012273,2]
[346917565,1735377042792,-500.0,0.00012372,2]
[346917566,1735377042801,-500.0,0.00012499,2]
[346917567,1735377042810,-45736.42121308,0.000125,4]
[346917885,1735377045931,-372.952584,0.00012371,2]
[346918272,1735377056223,1077.094646,0.00025,120]
[346918274,1735377573565,-2000.0,0.00020459,60]
[346918275,1735377575180,-2000.0,0.00020459,60]
[346918276,1735377576258,-2000.0,0.00020459,60]
[346918277,1735377597250,-1169.0,0.00020459,60]
[346918279,1735377678386,1000.0,0.00025,120]
[346918280,1735377710320,1275.3,0.00025,120]
[346918281,1735377745850,2601.12,0.00025,120]
[346918282,1735377761686,1950.84,0.00025,120]
[346918283,1735377773059,1463.13,0.00025,120]
[346918284,1735377791647,2194.69,0.00025,120]
[346918287,1735377895752,-0.88,0.00020459,60]
[346918288,1735377895788,-152.73,0.000205,31]
[346918289,1735377895824,-152.73,0.000205,31]
[346918290,1735377895862,-152.73,0.000205,31]
[346918291,1735377895898,-152.73,0.000205,31]
[346918292,1735377895935,-152.73,0.000205,31]
[346918293,1735377895971,-152.73,0.000205,31]
[346918294,1735377896007,-152.73,0.000205,31]
[346918295,1735377896042,-152.73,0.000205,31]
[346918296,1735377896078,-152.73,0.000205,31]
[346918297,1735377896114,-152.73,0.000205,31]
[346918298,1735377896149,-152.73,0.000205,31]
[346918299,1735377896185,-152.73,0.000205,31]
[346918300,1735377896221,-152.73,0.000205,31]
[346918301,1735377896257,-152.73,0.000205,31]
[346918302,1735377896292,-152.73,0.000205,31]
[346918303,1735377896334,-2000.0,0.00020737,30]
[346918304,1735377896449,-394.07269411,0.000212,30]
[346918305,1735377896489,-1137.36205712,0.00021917,30]
[346918306,1735377896527,-152.73,0.00022,31]
[346918307,1735377896564,-152.73,0.00022,31]
[346918308,1735377896600,-152.73,0.00022,31]
[346918309,1735377896636,-152.73,0.00022,31]
[346918310,1735377896673,-152.73,0.00022,31]
[346918311,1735377896709,-152.73,0.00022,31]
[346918312,1735377896746,-152.73,0.00022,31]
[346918313,1735377896785,-152.73,0.00022,31]
[346918314,1735377896822,-152.73,0.00022,31]
[346918315,1735377896859,-152.73,0.00022,31]
[346918316,1735377896894,-152.73,0.00022,31]
[346918317,1735377896931,-152.73,0.00022,31]
[346918318,1735377896965,-152.73,0.00022,31]
[346918319,1735377897001,-152.73,0.00022,31]
[346918320,1735377897035,-152.73,0.00022,31]
[346918321,1735377897070,-152.73,0.00022,31]
[346918322,1735377897105,-152.73,0.00022,31]
[346918323,1735377897140,-152.73,0.00022,31]
[346918324,1735377897175,-152.73,0.00022,31]
[346918325,1735377897210,-152.73,0.00022,31]
[346918326,1735377897244,-234.26296536,0.00023,60]
[346918327,1735377897285,-152.73,0.000235,31]
[346918328,1735377897334,-152.73,0.000235,31]
[346918329,1735377897379,-152.73,0.000235,31]
[346918330,1735377897425,-152.73,0.000235,31]
[346918331,1735377897471,-152.73,0.000235,31]
[346918332,1735377897517,-152.73,0.000235,31]
[346918333,1735377897560,-152.73,0.000235,31]
[346918334,1735377897604,-152.73,0.000235,31]
[346918335,1735377897644,-152.73,0.000235,31]
[346918336,1735377897687,-152.73,0.000235,31]
[346918337,1735377897733,-152.73,0.000235,31]
[346918338,1735377897780,-152.73,0.000235,31]
[346918339,1735377897819,-152.73,0.000235,31]
[346918340,1735377897865,-152.73,0.000235,31]
[346918341,1735377897909,-152.73,0.000235,31]
[346918342,1735377897952,-152.73,0.000235,31]
[346918343,1735377897992,-152.73,0.000235,31]
[346918344,1735377898031,-152.73,0.000235,31]
[346918345,1735377898072,-152.73,0.000235,31]
[346918346,1735377898115,-152.73,0.000235,31]
[346918347,1735377898154,-1500.0,0.00023774,30]
[346918348,1735377898193,-1500.0,0.00023774,30]
[346918349,1735377898232,-1500.0,0.00023774,30]
[346918350,1735377898272,-1500.0,0.00023774,30]
[346918351,1735377898436,-1500.0,0.00023774,30]
[346918352,1735377898469,-1500.0,0.00023774,30]
[346918353,1735377898502,-1500.0,0.00023774,30]
[346918354,1735377898535,-1500.0,0.00023774,30]
[346918355,1735377898568,-1500.0,0.00023774,30]
[346918356,1735377898601,-500.0,0.00023774,30]
[346918357,1735377898636,-1500.0,0.00023774,30]
[346918358,1735377898668,-884.20064905,0.00023774,30]
[346918359,1735377898702,-1500.0,0.00023774,30]
[346918360,1735377898736,-1500.0,0.00023774,30]
[346918361,1735377898770,-1500.0,0.00023774,30]
[346918362,1735377898803,-2700.0,0.00023774,30]
[346918363,1735377898835,-900.0,0.00023774,30]
[346918364,1735377898869,-900.0,0.00023774,30]
[346918365,1735377898902,-900.0,0.00023774,30]
[346918366,1735377898938,-900.0,0.00023774,30]
[346918367,1735377898972,-1100.0,0.00023774,30]
[346918368,1735377899004,-900.0,0.00023774,30]
[346918369,1735377899036,-1100.0,0.00023774,30]
[346918370,1735377899069,-900.0,0.00023774,30]
[346918371,1735377899103,-862.94397205,0.00023774,30]
[346918372,1735377899136,-1100.0,0.00023774,30]
[346918373,1735377899168,-900.0,0.00023774,30]
[346918374,1735377899200,-900.0,0.00023774,30]
[346918375,1735377899233,-900.0,0.00023774,30]
[346918376,1735377899266,-1100.0,0.00023774,30]
[346918377,1735377899298,-900.0,0.00023774,30]
[346918378,1735377899331,-500.0,0.00023774,30]
[346918379,1735377899365,-1100.0,0.00023774,30]
[346918380,1735377899399,-900.0,0.00023774,30]
[346918381,1735377899434,-1100.0,0.00023774,30]
[346918382,1735377899467,-900.0,0.00023774,30]
[346918383,1735377899570,-1100.0,0.00023774,30]
[346918384,1735377899604,-1315.10320166,0.00023774,30]
[346918385,1735377899639,-1100.0,0.00023774,30]
[346918386,1735377899673,-1100.0,0.00023774,30]
[346918387,1735377899706,-500.0,0.00023774,30]
[346918388,1735377899738,-1100.0,0.00023774,30]
[346918389,1735377899775,-504.70864023,0.00023774,30]
[346918390,1735377899810,-1100.0,0.00023774,30]
[346918391,1735377899845,-1100.0,0.00023774,30]
[346918392,1735377899878,-1100.0,0.00023774,30]
[346918393,1735377899911,-1642.61497831,0.00023774,30]
[346918394,1735377899945,-165.494269,0.0002411,35]
[346918395,1735377899977,-165.494269,0.0002411,44]
[346918396,1735377900010,-165.494269,0.0002411,52]
[346918397,1735377900043,-165.494269,0.0002411,60]
[346918398,1735377900077,-165.494269,0.0002411,69]
[346918399,1735377900111,-165.494269,0.0002411,77]
[346918400,1735377900145,-165.494269,0.0002411,86]
[346918401,1735377900179,-165.494269,0.0002411,94]
[346918402,1735377900214,-165.494269,0.0002411,103]
[346918403,1735377900247,-165.494269,0.0002411,111]
[346918404,1735377900280,-165.494269,0.0002411,119]
[346918405,1735377900319,-252.73127002,0.00025,30]
[346918406,1735377900353,-1000.0,0.00025,30]
[346918407,1735377900386,-312.44299206,0.00025,60]
[346918408,1735377900420,-202.94102271,0.00025,45]
[346918409,1735377900456,-152.73,0.000251,31]
[346918410,1735377900491,-152.73,0.000251,31]
[346918411,1735377900527,-152.73,0.000251,31]
[346918412,1735377900563,-152.73,0.000251,31]
[346918413,1735377900599,-152.73,0.000251,31]
[346918414,1735377900635,-152.73,0.000251,31]
[346918415,1735377900671,-152.73,0.000251,31]
[346918416,1735377900707,-152.73,0.000251,31]
[346918417,1735377900818,-152.73,0.000251,31]
[346918418,1735377900856,-152.73,0.000251,31]
[346918419,1735377900894,-152.73,0.000251,31]
[346918420,1735377900930,-152.73,0.000251,31]
[346918421,1735377900967,-152.73,0.000251,31]
[346918422,1735377901005,-152.73,0.000251,31]
[346918423,1735377901042,-152.73,0.000251,31]
[346918424,1735377901078,-152.73,0.000251,31]
[346918425,1735377901115,-152.73,0.000251,31]
[346918426,1735377901151,-152.73,0.000251,31]
[346918427,1735377901189,-152.73,0.000251,31]
[346918428,1735377901225,-152.73,0.000251,31]
[346918429,1735377901259,-226944.20891567,0.000255,30]
[346918432,1735377937283,-261.13260544,0.00011189,2]
[346918433,1735377937305,-261.13260544,0.00011302,2]
[346918434,1735377937328,-916.614,0.0001188,2]
[346918435,1735377937349,-2030.2389548,0.00012155,2]
[346918436,1735377937370,-188.75457003,0.00012273,2]
[346918437,1735377937392,-188.75457001,0.00012337,2]
[346918438,1735377937415,-267.0,0.00012369,2]
[346918439,1735377937437,-163.54900525,0.0001237,2]
[346918440,1735377956097,-939.85548298,0.00012124,2]
[346918441,1735377956118,-82.71778389,0.00012246,2]
[346918458,1735378045101,-707.3994352,0.00012246,2]
[346918459,1735378046172,-450.0,0.00012246,2]
[346918460,1735378053095,-665.32201861,0.00012246,2]
[346918485,1735378111634,152.04030811,0.0002,120]
[346918489,1735378176393,1097.35,0.000255,30]
[346918491,1735378209246,1095.0,0.000255,30]
[346918536,1735378232046,-279.11465007,0.00012124,2]
[346918538,1735378232056,-500.0,0.00012369,2]
[346918540,1735378232065,-500.0,0.00012369,2]
[346918542,1735378232074,-500.0,0.00012369,2]
[346918544,1735378232083,-500.0,0.00012369,2]
[346918546,1735378232092,-500.0,0.00012369,2]
[346918548,1735378232101,-476.8753973,0.00012369,2]
[346918551,1735378232114,-23.1246027,0.00012369,2]
[346918554,1735378232123,-1.70699475,0.0001237,2]
[346918557,1735378232133,-500.0,0.0001237,2]
[346918559,1735378232142,-500.0,0.0001237,2]
[346918561,1735378232151,-500.0,0.0001237,2]
[346918563,1735378232161,-564.13,0.0001237,2]
[346918565,1735378232170,-500.0,0.0001237,2]
[346918567,1735378232180,-500.0,0.0001237,2]
[346918569,1735378232189,-500.0,0.0001237,2]
[346918571,1735378232198,-500.0,0.0001237,2]
[346918573,1735378232208,-500.0,0.0001237,2]
[346918575,1735378232217,-408.93840255,0.0001237,2]
[346918611,1735378237955,-500.0,0.00012369,2]
[346918612,1735378237964,-607.1,0.00012369,2]
[346918613,1735378237973,-91.06159745,0.0001237,2]
[346918614,1735378237983,-500.0,0.0001237,2]
[346918615,1735378237992,-500.0,0.0001237,2]
[346918616,1735378238001,-500.0,0.0001237,2]
[346918617,1735378238011,-500.0,0.0001237,2]
[346918618,1735378238020,-500.0,0.0001237,2]
[346918619,1735378238030,-500.0,0.0001237,2]
[346918620,1735378238039,-500.0,0.0001237,2]
[346918621,1735378238048,-500.0,0.0001237,2]
[346918622,1735378238057,-500.0,0.0001237,2]
[346918623,1735378238066,-429.37605761,0.0001237,2]
[346918624,1735378238078,-70.62394239,0.0001237,2]
[346918626,1735378238087,-500.0,0.0001237,2]
[346918628,1735378238096,-500.0,0.0001237,2]
[346918630,1735378238105,-440.26848911,0.0001237,2]
[346918632,1735378238119,-59.73151089,0.0001237,2]
[346918634,1735378238127,-500.0,0.0001237,2]
[346918635,1735378238136,-500.0,0.0001237,2]
[346918636,1735378238146,-302.45,0.0001237,2]
[346918637,1735378238156,-500.0,0.0001237,2]
[346918638,1735378238166,-500.0,0.0001237,2]
[346918639,1735378238176,-500.0,0.0001237,2]
[346918640,1735378238185,-500.0,0.0001237,2]
[346918641,1735378238194,-492.81848911,0.0001237,2]
[346918927,1735378243158,-7.18151089,0.0001237,2]
[346918930,1735378243168,-500.0,0.0001237,2]
[346918932,1735378243178,-500.0,0.0001237,2]
[346918935,1735378243189,-500.0,0.0001237,2]
[346918937,1735378243198,-506.1,0.0001237,2]
[346918940,1735378243208,-165.47,0.0001237,2]
[346918942,1735378243220,-500.0,0.0001237,2]
[346918947,1735378243233,-500.0,0.0001237,2]
[346918950,1735378243245,-500.0,0.0001237,2]
[346918955,1735378243260,-2126.15,0.0001237,2]
[346918958,1735378243272,-500.0,0.0001237,2]
[346918961,1735378243285,-70.87348801,0.0001237,2]
[346918964,1735378243299,-429.12651199,0.0001237,2]
[346918966,1735378243310,-505.91,0.0001237,2]
[346918968,1735378243320,-400.48848801,0.0001237,2]
[346919238,1735378246054,-479.0,0.00012246,2]
[346919240,1735378246066,-99.51151199,0.0001237,2]
[346919242,1735378246076,-500.0,0.0001237,2]
[346919244,1735378246086,-621.66927251,0.0001237,2]
[346919246,1735378246095,-500.0,0.0001237,2]
[346919249,1735378246106,-500.0,0.0001237,2]
[346919251,1735378246117,-500.0,0.0001237,2]
[346919253,1735378246138,-500.0,0.0001237,2]
[346919255,1735378246151,-500.0,0.0001237,2]
[346919257,1735378246162,-156.90949924,0.0001237,2]
[346919266,1735378246241,-121.79742864,0.0001237,2]
[346919269,1735378246252,-106.30260309,0.0001237,2]
[346919271,1735378246267,-433.06188726,0.0001237,2]
[346919273,1735378246278,-472.55488081,0.0001237,2]
[346919276,1735378246289,-623.26412287,0.0001237,2]
[346919278,1735378246301,-163.18945706,0.0001237,2]
[346919280,1735378246313,-302.14785283,0.00012371,2]
[346919404,1735378247756,-197.85214717,0.00012371,2]
[346919405,1735378247768,-663.2,0.00012371,2]
[346919406,1735378247777,-490.9,0.00012371,2]
[346919407,1735378247786,-169.86171395,0.00012371,2]
[346919408,1735378247795,-500.0,0.00012371,2]
[346919409,1735378247804,-500.0,0.00012371,2]
[346919410,1735378247813,-500.0,0.00012371,2]
[346919411,1735378247823,-500.0,0.00012371,2]
[346919412,1735378247832,-500.0,0.00012371,2]
[346919413,1735378247841,-500.0,0.00012371,2]
[346919414,1735378247850,-500.0,0.00012371,2]
[346919415,1735378247863,-173.196,0.00012371,2]
[346919416,1735378247873,-500.0,0.00012371,2]
[346919417,1735378247882,-500.0,0.00012371,2]
[346919418,1735378247892,-300.52,0.00012371,2]
[346919419,1735378247902,-500.0,0.00012371,2]
[346919420,1735378247912,-500.0,0.00012371,2]
[346919421,1735378247920,-502.31671248,0.00012371,2]
[346919422,1735378247930,-573.55,0.00012371,2]
[346919423,1735378247940,-500.0,0.00012371,2]
[346919424,1735378247950,-500.0,0.00012371,2]
[346919425,1735378247959,-500.0,0.00012371,2]
[346919426,1735378247970,-500.0,0.00012371,2]
[346919427,1735378247979,-500.0,0.00012371,2]
[346919428,1735378247988,-500.0,0.00012371,2]
[346919429,1735378247997,-443.63706688,0.00012371,2]
[346919430,1735378248007,-500.0,0.00012371,2]
[346919431,1735378248016,-500.0,0.00012371,2]
[346919432,1735378248025,-500.0,0.00012371,2]